bitfinex-derivatives/quotes_BTCF0:USTF0_20241015
["timestamp","ask_amount","ask_price","bid_price","bid_amount"]
[1729023065692,0.24990745,67053.0,67052.0,0.07634074]
[1729023065894,0.18568926,67053.0,67052.0,0.07634074]
[1729023066491,0.3346486,67053.0,67052.0,0.07634074]
[1729023066693,0.3356486,67053.0,67052.0,0.07734074]
[1729023066984,0.3356486,67053.0,67052.0,0.07634074]
[1729023066985,0.35675071,67053.0,67052.0,0.07634074]
[1729023067189,0.35675071,67053.0,67052.0,0.07734074]
[1729023067592,0.35677622,67053.0,67052.0,0.07734074]
[1729023067903,0.20779137,67053.0,67052.0,0.07734074]
[1729023069290,0.2077903,67053.0,67052.0,0.07734074]
[1729023070099,0.2077903,67053.0,67052.0,0.24734074]
[1729023070298,0.1332193,67053.0,67052.0,0.24734074]
[1729023071603,0.08743793,67053.0,67052.0,0.24734074]
[1729023071803,0.02210211,67053.0,67052.0,0.24734074]
[1729023072099,0.15616764,67053.0,67052.0,0.24734074]
[1729023072299,0.26728144,67053.0,67052.0,0.24734074]
[1729023072892,0.02210211,67053.0,67052.0,0.07734074]
[1729023073490,0.26667311,67053.0,67052.0,0.07734074]
[1729023073787,0.62747311,67053.0,67052.0,0.07734074]
[1729023074099,0.45747311,67053.0,67052.0,0.07734074]
[1729023078002,0.26667311,67053.0,67052.0,0.07734074]
[1729023080899,0.41565675,67053.0,67052.0,0.07734074]
[1729023081097,0.52677637,67053.0,67052.0,0.07734074]
[1729023081501,0.37779273,67053.0,67052.0,0.07734074]
[1729023083601,0.37779273,67053.0,67038.0,0.00223728]
[1729023083602,0.87487936,67053.0,67023.0,0.6844]
[1729023083808,0.074597,67031.0,67029.0,0.1904]
[1729023084008,0.35572292,67030.0,67029.0,0.1904]
[1729023084308,0.43014367,67030.0,67029.0,0.1904]
[1729023084513,0.28112592,67030.0,67029.0,0.1904]
[1729023084710,0.11112592,67030.0,67029.0,0.1904]
[1729023085014,0.14893237,67034.0,67033.0,0.11304109]
[1729023085203,0.16385528,67039.0,67036.0,0.074589]
[1729023085509,0.00223807,67044.0,67038.0,0.17]
[1729023085709,0.00223807,67044.0,67039.0,0.1993]
[1729023085908,0.38258067,67043.0,67039.0,0.1993]
[1729023087006,0.38458067,67043.0,67040.0,0.1965]
[1729023087814,0.34725841,67043.0,67040.0,0.27068537]
[1729023088005,0.34725841,67043.0,67041.0,0.07418537]
[1729023088607,0.34725841,67043.0,67042.0,0.07418537]
[1729023088805,0.35025841,67043.0,67042.0,0.07418537]
[1729023089207,0.35025841,67043.0,67042.0,1.57418537]
[1729023089417,0.35025841,67043.0,67042.0,1.5]
[1729023089612,0.02478067,67043.0,67042.0,1.5]
[1729023089913,0.02678067,67043.0,67042.0,1.5]
[1729023090509,0.02578067,67043.0,67042.0,1.5]
[1729023091311,0.02578067,67043.0,67042.0,1.501]
[1729023091820,0.19578067,67043.0,67042.0,1.501]
[1729023092010,0.27036267,67043.0,67042.0,1.501]
[1729023093914,0.27036267,67043.0,67042.0,0.001]
[1729023094214,0.074588,67038.0,67037.0,0.07418537]
[1729023094415,0.244588,67038.0,67037.0,1.57418537]
[1729023095121,0.605388,67038.0,67037.0,1.5]
[1729023095516,0.074592,67034.0,67033.0,0.11263346]
[1729023095717,0.244592,67034.0,67033.0,0.03844809]
[1729023095916,0.35574421,67034.0,67033.0,1.53844809]
[1729023096117,0.4897753,67034.0,67033.0,1.53844809]
[1729023096514,0.35574421,67034.0,67033.0,1.53844809]
[1729023097426,0.31294841,67034.0,67033.0,1.53844809]
[1729023098321,0.35874507,67034.0,67033.0,1.53844809]
[1729023098535,0.35874507,67034.0,67013.0,0.68528]
[1729023098536,0.074593,67033.0,67019.0,0.3608]
[1729023098716,0.17,67020.0,67019.0,0.3608]
[1729023098917,0.23535641,67020.0,67019.0,0.3608]
[1729023099523,0.30996441,67020.0,67019.0,1.8108]
[1729023099727,0.30996441,67020.0,67019.0,1.45]
[1729023100021,0.30996441,67020.0,67019.0,1.461]
[1729023100022,0.35576824,67020.0,67019.0,1.461]
[1729023100229,0.50462151,67020.0,67019.0,1.461]
[1729023100421,0.35576824,67020.0,67019.0,1.461]
[1729023100622,0.35876824,67020.0,67019.0,1.451]
[1729023102114,0.35876824,67020.0,67019.0,0.001]
[1729023102924,0.247608,67020.0,67019.0,0.001]
[1729023103321,0.26924796,67020.0,67019.0,0.001]
[1729023107529,0.63004796,67020.0,67019.0,0.001]
[1729023111829,0.074612,67016.0,67015.0,0.00223807]
[1729023112820,0.435412,67016.0,67015.0,0.00223807]
[1729023113019,0.435412,67016.0,67015.0,0.00323807]
[1729023113228,0.435412,67016.0,67015.0,0.00823807]
[1729023113426,0.074612,67016.0,67015.0,0.00823807]
[1729023113622,0.435412,67016.0,67015.0,0.00823807]
[1729023115834,0.545412,67016.0,67015.0,0.00823807]
[1729023117831,0.02163996,67020.0,67015.0,0.00823807]
[1729023118032,0.3608,67029.0,67019.0,0.16914677]
[1729023118329,0.074604,67024.0,67021.0,0.05914677]
[1729023118537,0.074604,67023.0,67022.0,1.50914677]
[1729023119529,0.184604,67023.0,67022.0,1.50914677]
[1729023119828,0.192604,67023.0,67022.0,1.50914677]
[1729023120034,0.118,67023.0,67022.0,1.50914677]
[1729023120629,0.118,67023.0,67022.0,1.45]
[1729023120835,0.192604,67023.0,67022.0,1.45]
[1729023121039,0.192604,67023.0,67022.0,1.50917816]
[1729023121230,0.192604,67023.0,67022.0,1.45]
[1729023121931,0.118,67023.0,67022.0,1.45]
[1729023122537,0.008,67023.0,67022.0,1.56]
[1729023124438,0.008,67023.0,67022.0,1.63390777]
[1729023125034,0.008,67023.0,67022.0,1.56]
[1729023125232,0.008,67023.0,67022.0,1.63390777]
[1729023125437,0.008,67023.0,67022.0,1.67042506]
[1729023125935,0.008,67023.0,67022.0,1.56]
[1729023127441,0.008,67023.0,67022.0,1.61927589]
[1729023127842,0.008,67023.0,67022.0,2.27]
[1729023128142,0.02116198,67029.0,67024.0,0.184603]
[1729023128344,0.074592,67034.0,67028.0,0.11]
[1729023128537,0.074592,67034.0,67031.0,0.11]
[1729023128730,0.074592,67034.0,67032.0,0.1877]
[1729023129035,0.38221338,67033.0,67032.0,0.1877]
[1729023129538,0.38421338,67033.0,67032.0,0.1877]
[1729023129933,0.45880638,67033.0,67032.0,0.1877]
[1729023130133,0.45880638,67033.0,67032.0,0.1887]
[1729023131039,0.56880638,67033.0,67032.0,0.001]
[1729023131235,0.67880638,67033.0,67028.0,0.01979262]
[1729023131545,0.074604,67023.0,67022.0,1.45076]
[1729023131734,0.074604,67023.0,67022.0,1.45]
[1729023133038,0.13997488,67023.0,67022.0,1.45]
[1729023134046,0.30997488,67023.0,67022.0,1.45]
[1729023134247,0.23537088,67023.0,67016.0,0.191]
[1729023134443,0.074612,67016.0,67013.0,0.29869]
[1729023134745,0.46423847,67016.0,67013.0,0.29869]
[1729023136241,0.46423847,67016.0,67015.0,0.00423807]
[1729023136545,0.46423847,67016.0,67015.0,0.00923807]
[1729023138441,0.46423847,67016.0,67015.0,1.45923807]
[1729023139847,0.48570055,67016.0,67015.0,1.45923807]
[1729023140946,0.12490055,67016.0,67015.0,1.45923807]
[1729023141139,0.09607408,67016.0,67015.0,1.62923807]
[1729023141340,0.074606,67022.0,67015.0,1.74062569]
[1729023141540,0.074606,67022.0,67021.0,0.17]
[1729023141944,0.074603,67025.0,67021.0,0.17]
[1729023142252,0.074602,67025.0,67024.0,0.17]
[1729023144155,0.075602,67025.0,67024.0,0.17]
[1729023144457,0.075602,67025.0,67024.0,0.171]
[1729023144458,0.076602,67025.0,67024.0,0.171]
[1729023146550,0.077602,67025.0,67024.0,0.171]
[1729023146749,0.09939991,67025.0,67024.0,0.171]
[1729023147147,0.02479791,67025.0,67024.0,0.171]
[1729023148743,0.07059715,67025.0,67024.0,0.171]
[1729023148944,0.13595848,67025.0,67024.0,0.171]
[1729023151661,0.21056048,67025.0,67024.0,0.171]
[1729023154971,0.38056048,67025.0,67024.0,0.001]
[1729023155161,0.52900604,67025.0,67024.0,0.001]
[1729023155459,0.56116048,67025.0,67024.0,0.001]
[1729023155763,0.69525295,67025.0,67024.0,0.001]
[1729023156059,0.58409238,67025.0,67024.0,0.001]
[1729023156259,0.44999991,67025.0,67024.0,0.001]
[1729023156657,0.81079991,67025.0,67024.0,0.001]
[1729023157560,0.44999991,67025.0,67024.0,0.001]
[1729023157765,0.81079991,67025.0,67024.0,0.001]
[1729023160163,1.85839991,67025.0,67015.0,1.45223807]
[1729023160360,0.605412,67016.0,67015.0,1.45]
[1729023161452,0.605412,67016.0,67015.0,1.452]
[1729023161657,0.435412,67016.0,67015.0,1.452]
[1729023161866,0.435412,67016.0,67015.0,1.457]
[1729023162053,0.435412,67016.0,67015.0,1.455]
[1729023162257,0.435412,67016.0,67015.0,1.457]
[1729023162465,0.437412,67016.0,67015.0,1.452]
[1729023163160,0.46623982,67016.0,67015.0,1.452]
[1729023164068,0.46923982,67016.0,67015.0,1.451]
[1729023165262,0.10843982,67016.0,67015.0,1.451]
[1729023165462,0.46923982,67016.0,67015.0,1.451]
[1729023166060,0.49085373,67016.0,67015.0,1.451]
[1729023166468,0.074614,67014.0,67013.0,0.11375732]
[1729023166666,0.50079063,67014.0,67013.0,0.09877732]
[1729023166968,0.074628,67002.0,67001.0,0.00223864]
[1729023167168,0.46426056,67002.0,67001.0,0.00223864]
[1729023167571,0.46426056,67002.0,67001.0,1.45223864]
[1729023168367,0.46426056,67002.0,67001.0,1.45823864]
[1729023169259,0.47326056,67002.0,67001.0,1.45923864]
[1729023170366,0.48126191,67002.0,67001.0,1.45423864]
[1729023171271,0.452428,67002.0,67001.0,1.45423864]
[1729023171868,0.452428,67002.0,67001.0,1.452]
[1729023172068,0.47429357,67002.0,67001.0,1.452]
[1729023172769,0.07463,67000.0,66999.0,0.07017905]
[1729023173068,0.24463,67000.0,66999.0,0.01906905]
[1729023173471,0.074645,66987.0,66982.0,0.05920252]
[1729023173767,0.07465,66982.0,66981.0,0.193]
[1729023174272,0.5308,66983.0,66976.0,0.29885]
[1729023174273,0.074656,66977.0,66976.0,0.29885]
[1729023174571,0.605456,66977.0,66976.0,0.29885]
[1729023174762,0.605456,66977.0,66976.0,1.72885]
[1729023176062,0.606456,66977.0,66976.0,1.73885]
[1729023176670,0.607456,66977.0,66976.0,1.74585]
[1729023177480,0.3846559,66977.0,66976.0,1.74585]
[1729023177669,0.0238559,66977.0,66976.0,1.74585]
[1729023178471,0.3608,66990.0,66976.0,2.79377]
[1729023178768,0.3608,67003.0,66976.0,2.79377]
[1729023178769,0.074635,66996.0,66989.0,0.46885]
[1729023179067,0.074635,66996.0,66995.0,0.17]
[1729023179464,0.074631,67000.0,66995.0,0.17]
[1729023179666,0.02391882,67001.0,66995.0,0.17]
[1729023179867,0.3608,66996.0,66995.0,0.17]
[1729023180976,0.3698,66996.0,66995.0,0.171]
[1729023181369,0.444435,66996.0,66995.0,0.171]
[1729023182068,0.3698,66996.0,66995.0,0.171]
[1729023182673,0.3818,66996.0,66995.0,0.172]
[1729023183569,0.456435,66996.0,66995.0,0.002]
[1729023185975,0.3818,66996.0,66995.0,0.002]
[1729023186576,0.456435,66996.0,66995.0,0.002]
[1729023188576,0.48527262,66996.0,66995.0,0.002]
[1729023188777,0.456435,66996.0,66995.0,0.002]
[1729023188979,0.48527245,66996.0,66995.0,0.002]
[1729023189980,0.41063745,66996.0,66995.0,0.002]
[1729023190170,0.3818,66996.0,66995.0,0.172]
[1729023190876,0.02167931,67001.0,66995.0,1.9628]
[1729023191076,0.3608,67009.0,67003.0,0.29885]
[1729023191269,0.3608,67015.0,67008.0,0.7008]
[1729023191471,0.3608,67015.0,67013.0,0.17]
[1729023191971,0.38234468,67015.0,67014.0,1.43]
[1729023193480,0.45695768,67015.0,67014.0,1.43]
[1729023193877,0.46395768,67015.0,67014.0,1.431]
[1729023194074,0.66065768,67015.0,67014.0,1.432]
[1729023194674,0.66065768,67015.0,67003.0,0.66053]
[1729023194675,0.074624,67006.0,67003.0,0.66053]
[1729023194875,0.074624,67006.0,67003.0,0.65965]
[1729023195182,0.074624,67006.0,67004.0,1.43]
[1729023195477,0.074624,67006.0,67003.0,0.66045]
[1729023195673,0.074624,67006.0,67003.0,0.65965]
[1729023196273,0.080624,67006.0,67004.0,0.001]
[1729023196782,0.085624,67006.0,67004.0,0.001]
[1729023196981,0.079624,67006.0,67003.0,0.29885]
[1729023197178,0.074626,67004.0,67003.0,0.29985]
[1729023198470,0.081626,67004.0,67003.0,0.30085]
[1729023198684,0.081626,67004.0,67003.0,0.29985]
[1729023198879,0.007,67004.0,67003.0,0.29985]
[1729023199478,0.014,67004.0,67003.0,0.30085]
[1729023204180,0.014,67004.0,67003.0,0.375477]
[1729023205079,0.007,67004.0,67003.0,0.374477]
[1729023205384,0.014,67004.0,67003.0,0.375477]
[1729023205580,0.02657319,67006.0,67003.0,0.373477]
[1729023205779,0.07462,67009.0,67005.0,0.17]
[1729023206580,0.3608,67012.0,67005.0,0.17]
[1729023206780,0.074619,67010.0,67009.0,0.17]
[1729023207177,0.074622,67007.0,67005.0,0.17]
[1729023207586,0.5308,67012.0,67003.0,0.29985]
[1729023207886,0.074626,67004.0,67003.0,0.29985]
[1729023208188,0.10345703,67004.0,67003.0,0.29985]
[1729023208388,0.10345703,67004.0,67003.0,0.29885]
[1729023209293,0.11045703,67004.0,67003.0,0.29985]
[1729023210793,0.11745703,67004.0,67003.0,0.30085]
[1729023212197,0.014,67004.0,67003.0,0.375477]
[1729023212492,0.014,67004.0,67003.0,0.30085]
[1729023213279,0.0399336,67004.0,67003.0,0.30085]
[1729023214095,0.1145596,67004.0,67003.0,0.30085]
[1729023214883,0.4753596,67004.0,67003.0,0.30085]
[1729023215192,0.50419074,67004.0,67003.0,0.30085]
[1729023215995,0.50419074,67004.0,67003.0,0.27764974]
[1729023216294,0.4753596,67004.0,67003.0,0.27764974]
[1729023217291,0.4753596,67004.0,67003.0,0.25496954]
[1729023218697,0.4007336,67004.0,66991.0,0.18028595]
[1729023219001,0.3608,66998.0,66995.0,0.17]
[1729023219394,0.435433,66998.0,66995.0,0.17]
[1729023219700,0.3608,66998.0,66995.0,0.17]
[1729023219905,0.074634,66997.0,66995.0,0.17]
[1729023220502,0.3608,66998.0,66995.0,0.17]
[1729023221006,0.3608,66998.0,66995.0,0.171]
[1729023221007,0.074635,66996.0,66995.0,0.171]
[1729023222403,0.080635,66996.0,66995.0,0.172]
[1729023223204,0.10946942,66996.0,66995.0,0.172]
[1729023223397,0.11246942,66996.0,66995.0,0.171]
[1729023224797,0.11247015,66996.0,66995.0,0.171]
[1729023225496,0.03783515,66996.0,66995.0,0.245636]
[1729023225696,0.074631,67000.0,66999.0,0.26091485]
[1729023226005,0.074629,67002.0,66999.0,0.50554585]
[1729023226509,0.074629,67002.0,66999.0,0.43091485]
[1729023226801,0.38693075,67007.0,66999.0,0.43091485]
[1729023227007,0.009,67000.0,66999.0,0.43291485]
[1729023227607,0.07463,67001.0,66999.0,0.43291485]
[1729023228308,0.007,67000.0,66999.0,0.43291485]
[1729023228506,0.009,67000.0,66999.0,0.43291485]
[1729023228807,0.08363,67000.0,66999.0,0.26291485]
[1729023228997,0.08363,67000.0,66999.0,0.22142651]
[1729023228998,1.08378584,67000.0,66999.0,0.22142651]
[1729023229199,0.074645,66987.0,66986.0,0.01495]
[1729023229711,0.244645,66987.0,66986.0,0.01495]
[1729023229898,0.244645,66987.0,66981.0,0.00223947]
[1729023229899,0.17,66987.0,66981.0,0.00223947]
[1729023230097,0.1858,66990.0,66981.0,0.00223947]
[1729023230098,0.24465,66982.0,66981.0,0.00223947]
[1729023230903,0.074652,66980.0,66979.0,0.29884]
[1729023231110,0.28121827,66980.0,66979.0,0.29884]
[1729023231419,0.244652,66980.0,66979.0,0.29884]
[1729023233103,0.244652,66980.0,66979.0,0.29984]
[1729023233904,0.246652,66980.0,66979.0,0.29984]
[1729023234508,0.246652,66980.0,66979.0,0.46984]
[1729023234509,0.02828446,66980.0,66979.0,0.46984]
[1729023234702,0.258746,66986.0,66979.0,0.46984]
[1729023234703,0.3608,66985.0,66979.0,0.46984]
[1729023234909,0.3608,66985.0,66983.0,0.17]
[1729023235404,0.074649,66983.0,66980.0,0.17]
[1729023235712,0.074649,66983.0,66979.0,0.29984]
[1729023236112,0.074649,66983.0,66979.0,0.29884]
[1729023236412,0.074649,66983.0,66981.0,0.17]
[1729023237412,0.07465,66982.0,66981.0,0.17]
[1729023238902,0.001,66983.0,66981.0,0.17]
[1729023239104,0.001,66983.0,66982.0,0.1971]
[1729023239512,0.002,66983.0,66982.0,0.1971]
[1729023240009,0.435447,66985.0,66982.0,0.1971]
[1729023240204,0.002,66983.0,66982.0,0.1971]
[1729023240800,0.003,66983.0,66982.0,0.1971]
[1729023242308,0.003,66983.0,66981.0,0.17]
[1729023242503,0.17,66982.0,66979.0,0.29884]
[1729023242706,0.074652,66980.0,66979.0,0.29884]
[1729023244015,0.076652,66980.0,66979.0,0.29884]
[1729023247017,0.002,66980.0,66979.0,0.29884]
[1729023250717,0.076652,66980.0,66979.0,0.29884]
[1729023251315,1.294532,66980.0,66979.0,0.29884]
[1729023254808,0.607452,66980.0,66979.0,0.29884]
[1729023255015,0.437452,66980.0,66979.0,0.29884]
[1729023257916,0.3628,66980.0,66979.0,0.29884]
[1729023258217,0.002,66980.0,66979.0,1.421373]
[1729023258918,0.0819789,66993.0,66984.0,0.074647]
[1729023259130,0.0819789,66993.0,66992.0,0.17]
[1729023259830,0.0073409,66993.0,66992.0,0.17]
[1729023260014,0.005,66993.0,66992.0,0.17]
[1729023260314,0.0413664,66993.0,66992.0,0.17]
[1729023260514,0.0463664,66993.0,66992.0,0.17]
[1729023261628,0.01752834,66993.0,66992.0,0.17]
[1729023261813,0.09016634,66993.0,66992.0,0.171]
[1729023262018,0.003,66993.0,66992.0,0.171]
[1729023262218,0.04483806,66993.0,66992.0,0.172]
[1729023262518,0.016,66993.0,66992.0,0.172]
[1729023267722,0.016,66993.0,66992.0,0.002]
[1729023270923,0.090638,66993.0,66992.0,0.002]
[1729023275438,0.20185868,66993.0,66992.0,0.002]
[1729023275636,0.22656583,66993.0,66992.0,0.002]
[1729023275835,0.2554037,66993.0,66992.0,0.002]
[1729023277244,0.20185871,66993.0,66992.0,0.002]
[1729023277540,0.2554037,66993.0,66992.0,0.002]
[1729023278333,0.20185871,66993.0,66992.0,0.002]
[1729023283341,0.090638,66993.0,66992.0,0.002]
[1729023284140,1.308438,66993.0,66992.0,0.002]
[1729023284338,1.492038,66993.0,66992.0,0.002]
[1729023284541,0.892038,66993.0,66992.0,0.002]
[1729023284846,0.444238,66993.0,66992.0,0.002]
[1729023285241,0.074647,66985.0,66980.0,0.05925877]
[1729023285444,0.074647,66985.0,66979.0,0.29884]
[1729023285445,0.074652,66980.0,66979.0,0.23304]
[1729023285633,0.074654,66979.0,66963.0,0.05925877]
[1729023285835,0.244652,66980.0,66962.0,0.23388]
[1729023285836,0.074671,66963.0,66962.0,0.23388]
[1729023286243,0.074671,66963.0,66962.0,0.23304]
[1729023288134,0.074671,66963.0,66962.0,0.23704]
[1729023288441,0.074671,66963.0,66962.0,0.23904]
[1729023288442,0.075671,66963.0,66962.0,0.23904]
[1729023289231,1.123671,66963.0,66962.0,0.23904]
[1729023289546,0.075671,66963.0,66962.0,0.23904]
[1729023289750,0.1031826,66963.0,66962.0,0.23904]
[1729023289951,0.0285116,66963.0,66962.0,0.23904]
[1729023290338,0.35194346,66965.0,66962.0,0.23904]
[1729023290534,0.42661346,66965.0,66962.0,0.23804]
[1729023290841,0.45302527,66965.0,66964.0,0.17]
[1729023291237,0.001,66963.0,66962.0,0.23504]
[1729023291440,0.001,66963.0,66962.0,0.23804]
[1729023291844,0.074671,66963.0,66962.0,0.23604]
[1729023292043,0.074671,66963.0,66962.0,0.23304]
[1729023292543,0.075671,66963.0,66962.0,0.23304]
[1729023293846,0.075671,66963.0,66962.0,0.23604]
[1729023296247,0.02641281,66965.0,66962.0,0.40604]
[1729023296450,0.3608,66969.0,66963.0,0.1846]
[1729023296750,0.3608,66969.0,66968.0,0.17]
[1729023297047,0.38800587,66969.0,66968.0,0.17]
[1729023298839,0.38900587,66969.0,66968.0,0.17]
[1729023299860,0.39200587,66969.0,66968.0,0.17]
[1729023300452,0.004,66969.0,66968.0,0.34]
[1729023300754,0.00224021,66977.0,66968.0,0.34]
[1729023300755,0.00224021,66977.0,66971.0,0.074662]
[1729023300952,0.00224021,66977.0,66976.0,0.17]
[1729023301650,0.17224021,66977.0,66972.0,0.3679]
[1729023301857,0.17,66973.0,66972.0,0.1871]
[1729023302155,0.17,66973.0,66965.0,0.1871]
[1729023302343,0.07467,66964.0,66956.0,0.3608]
[1729023302651,0.074671,66963.0,66956.0,0.3608]
[1729023302860,0.244671,66963.0,66956.0,0.3608]
[1729023304457,0.244671,66963.0,66962.0,0.23604]
[1729023304458,0.074671,66963.0,66962.0,0.23604]
[1729023304854,0.075671,66963.0,66962.0,0.24204]
[1729023305149,0.10452294,66963.0,66962.0,0.24204]
[1729023305357,0.075671,66963.0,66962.0,0.24204]
[1729023311357,1.123671,66963.0,66962.0,0.24204]
[1729023311558,1.123671,66963.0,66962.0,0.22104]
[1729023311766,1.123671,66963.0,66962.0,0.009]
[1729023312165,1.13109896,66963.0,66962.0,0.009]
[1729023312365,1.35515474,66963.0,66962.0,0.009]
[1729023312958,1.35515474,66963.0,66962.0,0.00357149]
[1729023313561,1.49116712,66963.0,66962.0,0.00357149]
[1729023313759,1.50016712,66963.0,66962.0,0.00457149]
[1729023313960,1.66401632,66963.0,66962.0,0.00457149]
[1729023314264,1.66401632,66963.0,66962.0,0.001]
[1729023314265,1.07000373,66963.0,66962.0,0.001]
[1729023314469,0.90616712,66963.0,66962.0,0.001]
[1729023314767,0.45816712,66963.0,66962.0,0.001]
[1729023315552,0.73857702,66963.0,66962.0,0.001]
[1729023315757,0.57458882,66963.0,66962.0,0.001]
[1729023316856,0.62816556,66963.0,66962.0,0.001]
[1729023317059,0.79215376,66963.0,66962.0,0.001]
[1729023317566,0.73857702,66963.0,66962.0,0.001]
[1729023317764,2.03946194,66963.0,66952.0,0.00223986]
[1729023318066,2.03946194,66963.0,66947.0,0.20556]
[1729023318067,0.074688,66948.0,66947.0,0.20556]
[1729023318262,0.074688,66948.0,66927.0,0.3608]
[1729023318263,0.074702,66936.0,66933.0,0.20780086]
[1729023318469,0.06543735,66935.0,66933.0,0.20780086]
[1729023318668,0.14014135,66935.0,66933.0,0.20780086]
[1729023318869,0.06543735,66934.0,66933.0,0.20780086]
[1729023319174,0.31015016,66934.0,66933.0,0.20780086]
[1729023319476,0.19885578,66934.0,66933.0,0.20780086]
[1729023320568,0.244704,66934.0,66933.0,0.20780086]
[1729023320966,0.246704,66934.0,66933.0,0.20880086]
[1729023321164,0.607504,66934.0,66933.0,0.20880086]
[1729023321469,0.607504,66934.0,66933.0,0.00324086]
[1729023322664,0.63489854,66934.0,66933.0,0.00324086]
[1729023323269,0.63689854,66934.0,66933.0,0.00224086]
[1729023327662,0.63689854,66934.0,66933.0,1e-08]
[1729023328578,0.66576486,66934.0,66933.0,1e-08]
[1729023329172,1.26576486,66934.0,66933.0,1e-08]
[1729023330180,0.66576486,66934.0,66933.0,1e-08]
[1729023331082,1.26576486,66934.0,66933.0,1e-08]
[1729023331571,0.66576486,66934.0,66933.0,1e-08]
[1729023333766,0.07569,66947.0,66933.0,1e-08]
[1729023333767,0.3608,66944.0,66935.0,0.074702]
[1729023333973,0.10104351,66947.0,66943.0,0.17]
[1729023334266,0.074695,66942.0,66936.0,0.5534]
[1729023334784,0.17,66946.0,66936.0,0.5534]
[1729023334971,0.074694,66943.0,66936.0,0.5534]
[1729023335278,0.3608,66942.0,66936.0,0.5534]
[1729023335975,0.17,66939.0,66936.0,0.3834]
[1729023336172,0.0747,66937.0,66936.0,0.1978]
[1729023337174,0.181,66939.0,66936.0,0.1978]
[1729023337777,0.009,66937.0,66936.0,0.1978]
[1729023338272,0.011,66939.0,66936.0,0.1978]
[1729023338466,0.011,66939.0,66938.0,0.17]
[1729023339073,0.3608,66942.0,66938.0,0.17]
[1729023339475,0.008,66939.0,66938.0,0.17]
[1729023339678,0.38719354,66942.0,66938.0,0.17]
[1729023340081,0.009,66939.0,66938.0,0.171]
[1729023340383,0.006,66939.0,66938.0,0.172]
[1729023340884,0.39819354,66942.0,66938.0,0.172]
[1729023342175,0.39819354,66942.0,66938.0,0.245699]
[1729023342377,0.39819354,66942.0,66938.0,0.171]
[1729023342599,0.41019354,66942.0,66938.0,0.172]
[1729023342798,0.39919354,66942.0,66938.0,0.171]
[1729023343089,0.006,66939.0,66938.0,0.172]
[1729023343587,0.08844393,66939.0,66938.0,0.172]
[1729023343782,0.14857103,66939.0,66938.0,0.171]
[1729023344183,0.11130314,66939.0,66938.0,0.171]
[1729023344683,0.11630314,66939.0,66938.0,0.171]
[1729023345090,0.12230314,66939.0,66938.0,0.171]
[1729023346183,0.19200114,66939.0,66938.0,0.171]
[1729023346380,0.34557217,66939.0,66938.0,0.171]
[1729023347487,0.19200114,66939.0,66938.0,0.171]
[1729023347684,0.12230314,66939.0,66938.0,0.171]
[1729023347887,0.27134398,66939.0,66938.0,0.171]
[1729023348082,0.27134666,66939.0,66938.0,0.171]
[1729023348283,0.27134666,66939.0,66938.0,0.17]
[1729023348284,0.26534666,66939.0,66938.0,0.17]
[1729023348591,0.27234666,66939.0,66938.0,0.171]
[1729023348981,0.26534666,66939.0,66938.0,0.17]
[1729023349289,0.27234666,66939.0,66938.0,0.171]
[1729023349986,0.12330582,66939.0,66938.0,0.171]
[1729023350190,0.11830582,66939.0,66938.0,0.171]
[1729023350489,0.16101081,66939.0,66938.0,0.171]
[1729023350789,0.012,66939.0,66938.0,0.171]
[1729023352285,0.005,66939.0,66938.0,0.17]
[1729023352489,0.012,66939.0,66938.0,0.171]
[1729023352891,0.012,66939.0,66938.0,0.5318]
[1729023353387,0.012,66939.0,66938.0,0.606499]
[1729023353583,0.02639354,66942.0,66938.0,1.653659]
[1729023353789,0.012,66939.0,66938.0,0.606499]
[1729023354289,0.012,66939.0,66938.0,1.654659]
[1729023354594,0.007,66939.0,66938.0,1.654659]
[1729023354795,0.012,66939.0,66938.0,1.654659]
[1729023355982,0.005,66939.0,66938.0,1.653659]
[1729023356182,0.007,66939.0,66938.0,1.654659]
[1729023356481,0.012,66939.0,66938.0,1.654659]
[1729023357090,0.012,66939.0,66938.0,1.57996]
[1729023357288,0.012,66939.0,66938.0,0.5318]
[1729023362696,0.086698,66939.0,66938.0,0.3618]
[1729023363003,0.086698,66939.0,66938.0,0.001]
[1729023363791,0.012,66939.0,66938.0,0.001]
[1729023363991,0.3608,66949.0,66938.0,1.654659]
[1729023364193,0.0769281,66950.0,66949.0,0.074687]
[1729023364194,0.0022411,66950.0,66949.0,0.074687]
[1729023364601,0.0022411,66950.0,66949.0,0.522767]
[1729023364793,0.0022411,66950.0,66949.0,1.122767]
[1729023365690,0.06543,66950.0,66949.0,1.122767]
[1729023365891,0.13427671,66955.0,66954.0,0.074681]
[1729023366103,0.53642813,66973.0,66962.0,0.05654919]
[1729023366306,0.53642813,66973.0,66972.0,0.17]
[1729023366307,0.64476947,66973.0,66972.0,0.17]
[1729023366494,0.48134134,66973.0,66972.0,0.17]
[1729023366697,0.074664,66970.0,66969.0,0.17]
[1729023368306,0.074664,66970.0,66969.0,0.184]
[1729023369309,0.075664,66970.0,66969.0,0.198]
[1729023369502,0.436464,66970.0,66969.0,0.198]
[1729023369901,0.606464,66970.0,66969.0,0.028]
[1729023370609,0.074671,66963.0,66962.0,0.05654919]
[1729023371113,0.12051643,66963.0,66962.0,0.05654919]
[1729023371698,0.074671,66963.0,66962.0,0.05654919]
[1729023371903,0.084671,66963.0,66962.0,0.05754919]
[1729023372312,0.13051691,66963.0,66962.0,0.05754919]
[1729023372815,0.0867219,66963.0,66962.0,0.05754919]